fUST/lending_fUST_20240918
["ID","MTS","AMOUNT","RATE_DAILY","PERIOD"]
[338424625,1726629045853,-1441.26,0.00019178,2]
[338424626,1726629045863,-1441.26,0.00019178,2]
[338424627,1726629045872,-1441.26,0.00019178,2]
[338424628,1726629045882,-1441.26,0.00019178,2]
[338424629,1726629045891,-1441.26,0.00019178,2]
[338424630,1726629045902,-1441.26,0.00019178,2]
[338424631,1726629045912,-1441.26,0.00019178,2]
[338424632,1726629045921,-1441.26,0.00019178,2]
[338424633,1726629045931,-1441.26,0.00019178,2]
[338424634,1726629045940,-1441.26,0.00019178,2]
[338424635,1726629045950,-500.0,0.00019178,2]
[338424636,1726629045960,-1441.26,0.00019178,2]
[338424637,1726629045970,-1441.26,0.00019178,2]
[338424638,1726629045979,-1441.26,0.00019178,2]
[338424639,1726629045990,-500.0,0.00019178,2]
[338424640,1726629046000,-1441.26,0.00019178,2]
[338424641,1726629046009,-1441.26,0.00019178,2]
[338424642,1726629046020,-1441.49661819,0.00019178,2]
[338424643,1726629046029,-500.0,0.00019178,2]
[338424644,1726629046039,-500.0,0.00019178,2]
[338424645,1726629046049,-1237.98,0.00019178,2]
[338424646,1726629046059,-693.14,0.00019178,2]
[338424647,1726629046070,-820.47,0.00019178,2]
[338424648,1726629046080,-545.06,0.00019178,2]
[338424649,1726629046090,-500.0,0.00019178,2]
[338424650,1726629046101,-500.0,0.00019178,2]
[338424651,1726629046113,-500.0,0.00019178,2]
[338424652,1726629046124,-500.0,0.00019178,2]
[338424653,1726629046134,-500.0,0.00019178,2]
[338424654,1726629046146,-2086.81,0.00019178,2]
[338424655,1726629046155,-500.0,0.00019178,2]
[338424656,1726629046165,-500.0,0.00019178,2]
[338424657,1726629046174,-1220.19,0.00019178,2]
[338424658,1726629046185,-500.0,0.00019178,2]
[338424659,1726629046196,-432.64981515,0.00019178,2]
[338424660,1726629046207,-771.68,0.00019178,2]
[338424661,1726629046219,-2578.24,0.00019178,2]
[338424662,1726629046230,-500.0,0.00019178,2]
[338424663,1726629046243,-500.0,0.00019178,2]
[338424664,1726629046253,-1715.86,0.00019178,2]
[338424665,1726629046263,-500.0,0.00019178,2]
[338424666,1726629046272,-500.0,0.00019178,2]
[338424667,1726629046282,-500.0,0.00019178,2]
[338424668,1726629046293,-618.69018909,0.00019178,2]
[338424669,1726629046302,-2614.57,0.00019178,2]
[338424670,1726629046312,-923.54,0.00019178,2]
[338424671,1726629046322,-500.0,0.00019178,2]
[338424672,1726629046331,-500.0,0.00019178,2]
[338424673,1726629046342,-500.0,0.00019178,2]
[338424674,1726629046352,-536.42,0.00019178,2]
[338424675,1726629046361,-387.64963909,0.00019178,2]
[338424676,1726629046371,-500.0,0.00019178,2]
[338424677,1726629046380,-500.0,0.00019178,2]
[338424678,1726629046539,-500.0,0.00019178,2]
[338424679,1726629046549,-500.0,0.00019178,2]
[338424680,1726629046558,-982.0,0.00019178,2]
[338424682,1726629046568,-1235.53,0.00019178,2]
[338424684,1726629046577,-500.0,0.00019178,2]
[338424686,1726629046586,-500.0,0.00019178,2]
[338424687,1726629046595,-1668.89,0.00019178,2]
[338424688,1726629046604,-1668.89,0.00019178,2]
[338424689,1726629046613,-1668.89,0.00019178,2]
[338424690,1726629046623,-1668.89,0.00019178,2]
[338424691,1726629046632,-1668.89,0.00019178,2]
[338424692,1726629046641,-1668.89,0.00019178,2]
[338424693,1726629046650,-1668.89,0.00019178,2]
[338424694,1726629046659,-1668.89,0.00019178,2]
[338424695,1726629046669,-1668.89,0.00019178,2]
[338424696,1726629046678,-1668.89,0.00019178,2]
[338424697,1726629046688,-1668.89,0.00019178,2]
[338424698,1726629046697,-500.0,0.00019178,2]
[338424699,1726629046706,-1668.89,0.00019178,2]
[338424700,1726629046715,-1668.89,0.00019178,2]
[338424701,1726629046724,-1668.89,0.00019178,2]
[338424702,1726629046734,-1668.89,0.00019178,2]
[338424703,1726629046747,-1668.89,0.00019178,2]
[338424704,1726629046757,-1668.89,0.00019178,2]
[338424705,1726629046766,-1668.89,0.00019178,2]
[338424706,1726629046775,-1668.89,0.00019178,2]
[338424707,1726629046784,-1668.89,0.00019178,2]
[338424708,1726629046793,-1668.89,0.00019178,2]
[338424709,1726629046802,-1668.89,0.00019178,2]
[338424710,1726629046813,-1668.89,0.00019178,2]
[338424711,1726629046823,-1630.3,0.00019178,2]
[338424712,1726629046833,-1669.07536857,0.00019178,2]
[338424713,1726629046842,-474.45901079,0.00019178,2]
[338424714,1726629046851,-501.27083728,0.00019178,2]
[338424715,1726629046860,-500.0,0.00019178,2]
[338424716,1726629046870,-500.0,0.00019178,2]
[338424717,1726629046880,-500.0,0.00019178,2]
[338424718,1726629046889,-500.0,0.00019178,2]
[338424719,1726629046899,-758.5,0.00019178,2]
[338424720,1726629046909,-500.0,0.00019178,2]
[338424721,1726629046919,-500.0,0.00019178,2]
[338424722,1726629046929,-500.0,0.00019178,2]
[338424723,1726629046939,-500.0,0.00019178,2]
[338424724,1726629046948,-500.0,0.00019178,2]
[338424725,1726629046957,-2087.16,0.00019178,2]
[338424726,1726629046967,-500.0,0.00019178,2]
[338424727,1726629046976,-500.0,0.00019178,2]
[338424728,1726629046986,-500.0,0.00019178,2]
[338424729,1726629047008,-818.73,0.00019178,2]
[338424730,1726629047018,-500.0,0.00019178,2]
[338424731,1726629047027,-500.0,0.00019178,2]
[338424732,1726629047037,-500.0,0.00019178,2]
[338424733,1726629047049,-539.46,0.00019178,2]
[338424734,1726629047058,-500.0,0.00019178,2]
[338424735,1726629047068,-660.7,0.00019178,2]
[338424736,1726629047078,-500.0,0.00019178,2]
[338424737,1726629047088,-2725.59,0.00019178,2]
[338424738,1726629047097,-500.0,0.00019178,2]
[338424739,1726629047107,-801.32,0.00019178,2]
[338424740,1726629047116,-964.85,0.00019178,2]
[338424741,1726629047126,-501.27253316,0.00019178,2]
[338424742,1726629047135,-500.0,0.00019178,2]
[338424743,1726629047144,-908.58,0.00019178,2]
[338424744,1726629047154,-500.0,0.00019178,2]
[338424745,1726629047164,-500.0,0.00019178,2]
[338424746,1726629047173,-1074.15,0.00019178,2]
[338424747,1726629047182,-500.0,0.00019178,2]
[338424748,1726629047192,-2040.35,0.00019178,2]
[338424749,1726629047201,-500.0,0.00019178,2]
[338424750,1726629047211,-500.0,0.00019178,2]
[338424751,1726629047221,-500.0,0.00019178,2]
[338424752,1726629047230,-500.0,0.00019178,2]
[338424753,1726629047241,-500.0,0.00019178,2]
[338424754,1726629047251,-500.0,0.00019178,2]
[338424755,1726629047260,-500.0,0.00019178,2]
[338424756,1726629047271,-500.0,0.00019178,2]
[338424757,1726629047280,-537.00729022,0.00019178,2]
[338424758,1726629047289,-151.00820477,0.00019178,2]
[338424759,1726629047299,-500.0,0.00019178,2]
[338424760,1726629047308,-151.0,0.00019178,2]
[338424761,1726629047317,-500.0,0.00019178,2]
[338424762,1726629047327,-500.0,0.00019178,2]
[338424763,1726629047337,-581.07,0.00019178,2]
[338424764,1726629047346,-500.0,0.00019178,2]
[338424765,1726629047355,-1233.66,0.00019178,2]
[338424766,1726629047364,-329.90250438,0.00019178,2]
[338424767,1726629047374,-226.97,0.00019178,2]
[338424768,1726629047383,-500.0,0.00019178,2]
[338424769,1726629047393,-154.304865,0.00019178,2]
[338424770,1726629047403,-4087.59,0.00019178,2]
[338424771,1726629047412,-500.0,0.00019178,2]
[338424772,1726629047421,-1215.14,0.00019178,2]
[338424773,1726629047431,-500.0,0.00019178,2]
[338424774,1726629047441,-575.09232438,0.00019178,2]
[338424775,1726629047452,-500.0,0.00019178,2]
[338424776,1726629047461,-500.0,0.00019178,2]
[338424777,1726629047471,-500.0,0.00019178,2]
[338424778,1726629047480,-500.0,0.00019178,2]
[338424779,1726629047491,-188.942496,0.00019178,2]
[338424780,1726629047501,-500.0,0.00019178,2]
[338424781,1726629047510,-500.0,0.00019178,2]
[338424782,1726629047520,-500.0,0.00019178,2]
[338424783,1726629047530,-500.0,0.00019178,2]
[338424784,1726629047539,-400.27338501,0.00019178,2]
[338424797,1726629049144,-99.72661499,0.00019178,2]
[338424798,1726629049154,-524.06,0.00019178,2]
[338424799,1726629049163,-500.0,0.00019178,2]
[338424800,1726629049172,-502.96089728,0.00019178,2]
[338424801,1726629049182,-500.0,0.00019178,2]
[338424802,1726629049191,-500.0,0.00019178,2]
[338424803,1726629049200,-188.942496,0.00019178,2]
[338424804,1726629049211,-453.65675514,0.00019178,2]
[338424805,1726629049221,-1548.91,0.00019178,2]
[338424806,1726629049230,-1352.77,0.00019178,2]
[338424807,1726629049241,-1056.54,0.00019178,2]
[338424808,1726629049251,-570.1,0.00019178,2]
[338424809,1726629049261,-500.0,0.00019178,2]
[338424810,1726629049271,-1208.67385743,0.00019178,2]
[338424824,1726629248367,1328.0,0.00024,120]
[338424842,1726629965117,1000.0,0.00023,60]
[338424843,1726629965826,1000.0,0.00023,60]
[338424844,1726629966610,1000.0,0.00023,60]
[338424845,1726629967258,1000.0,0.00023,60]
[338424846,1726629967927,1000.0,0.00023,60]
[338424847,1726629968627,1000.0,0.00023,60]
[338424848,1726629969371,1000.0,0.00023,60]
[338424849,1726629970126,1000.0,0.00023,60]
[338424850,1726629970826,1000.0,0.00023,60]
[338424851,1726629971517,1000.0,0.00023,60]
[338424852,1726629972239,1000.0,0.00023,60]
[338424853,1726629972954,1000.0,0.00023,60]
[338424854,1726629973646,1000.0,0.00023,60]
[338424855,1726629974289,1000.0,0.00023,60]
[338424856,1726629975357,1000.0,0.00023,60]
[338424857,1726629975622,1000.0,0.00023,60]
[338424858,1726629976326,1000.0,0.00023,60]
[338424859,1726629976969,537.0,0.00023,60]
[338424862,1726630018606,1468.0,0.00024,120]
[338424868,1726630077012,1000.0,0.00023,60]
[338424869,1726630078098,1000.0,0.00023,60]
[338424871,1726630078776,1000.0,0.00023,60]
[338424872,1726630079438,1000.0,0.00023,60]
[338424873,1726630080125,1000.0,0.00023,60]
[338424874,1726630081332,1000.0,0.00023,60]
[338424875,1726630081813,1000.0,0.00023,60]
[338424876,1726630082482,1000.0,0.00023,60]
[338424877,1726630083152,1000.0,0.00023,60]
[338424878,1726630083852,1000.0,0.00023,60]
[338424879,1726630084542,1000.0,0.00023,60]
[338424880,1726630085222,1000.0,0.00023,60]
[338424881,1726630085884,1000.0,0.00023,60]
[338424882,1726630086535,1000.0,0.00023,60]
[338424883,1726630087233,1088.0,0.00023,60]
[338424884,1726630092309,1135.0,0.00023,60]
[338424907,1726630232805,-300.0,0.00017493,2]
[338424908,1726630232815,-458.51949775,0.00017494,2]
[338424909,1726630232829,-507.49957287,0.00017494,2]
[338424910,1726630232843,-2175.13508955,0.00017494,2]
[338424931,1726630238819,-373.8212371,0.00017494,2]
[338424933,1726630238833,-21385.02460273,0.00017494,2]
[338424934,1726630238843,-250.0,0.00018039,2]
[338424935,1726630238853,-250.0,0.00018088,2]
[338424936,1726630238864,-250.0,0.00018138,2]
[338424937,1726630238875,-250.0,0.00018187,2]
[338424938,1726630238886,-250.0,0.00018237,2]
[338424939,1726630238896,-250.0,0.00018286,2]
[338424940,1726630238910,-250.0,0.00018336,2]
[338424941,1726630238920,-250.0,0.00018385,2]
[338424942,1726630238930,-250.0,0.00018434,2]
[338424943,1726630238941,-250.0,0.00018484,2]
[338424944,1726630238952,-250.0,0.00018533,2]
[338424945,1726630238962,-250.0,0.00018583,2]
[338424946,1726630238972,-250.0,0.00018632,2]
[338424947,1726630238983,-250.0,0.00018682,2]
[338424948,1726630238993,-421.220396,0.000187,2]
[338424949,1726630239003,-250.0,0.00018731,2]
[338424950,1726630239013,-250.0,0.00018781,2]
[338424951,1726630239025,-250.0,0.0001883,2]
[338424952,1726630239035,-250.0,0.0001888,2]
[338424953,1726630239046,-250.0,0.00018929,2]
[338424954,1726630239057,-250.0,0.00018979,2]
[338424955,1726630239069,-15113.74767094,0.00019,2]
[338424956,1726630239081,-12088.06509761,0.00019,10]
[338424957,1726630239091,-153.0,0.00019041,2]
[338424958,1726630239101,-153.0,0.00019041,2]
[338424959,1726630239112,-153.0,0.00019041,2]
[338424960,1726630239123,-153.0,0.00019041,2]
[338424961,1726630239133,-153.0,0.00019041,2]
[338424962,1726630239144,-6387.74286606,0.00019085,2]
[338424963,1726630239154,-150.112233,0.000191,2]
[338424964,1726630239330,-150.112233,0.000191,2]
[338424965,1726630239358,-150.112233,0.000191,2]
[338424966,1726630239368,-150.112233,0.000191,2]
[338424967,1726630239377,-465.85730613,0.00019128,2]
[338424968,1726630239387,-500.0,0.00019128,2]
[338424969,1726630239396,-500.0,0.00019128,2]
[338424970,1726630239407,-500.0,0.00019128,2]
[338424971,1726630239417,-531.00859329,0.00019128,2]
[338424972,1726630239427,-220.37099575,0.00019128,2]
[338424973,1726630239437,-520.52400766,0.00019128,2]
[338424974,1726630239447,-636.8446584,0.00019128,2]
[338424975,1726630239457,-500.0,0.00019128,2]
[338424976,1726630239466,-500.0,0.00019128,2]
[338424977,1726630239476,-500.0,0.00019128,2]
[338424978,1726630239486,-500.0,0.00019128,2]
[338424979,1726630239495,-514.38,0.00019128,3]
[338424980,1726630239505,-257.19,0.00019128,3]
[338424981,1726630239516,-771.59,0.00019128,3]
[338424982,1726630239525,-403205.824857,0.00019129,3]
[338424983,1726630239536,-29303.8840693,0.00019129,3]
[338424984,1726630239547,-8372.53830552,0.00019148,3]
[338424985,1726630239557,-2977.13514684,0.0001915,2]
[338424986,1726630239568,-502.71389276,0.00019158,2]
[338424987,1726630239578,-4186.26915276,0.00019168,3]
[338424988,1726630239588,-41862.6915276,0.00019168,3]
[338424989,1726630239597,-500.0,0.00019173,2]
[338424990,1726630239606,-500.76551568,0.00019173,2]
[338424991,1726630239616,-360.07202762,0.00019173,2]
[338424992,1726630239626,-500.0,0.00019173,2]
[338424993,1726630239636,-500.0,0.00019173,2]
[338424994,1726630239646,-500.0,0.00019173,2]
[338424995,1726630239659,-500.0,0.00019173,2]
[338424996,1726630239670,-504.20016458,0.00019173,2]
[338424997,1726630239679,-500.0,0.00019173,2]
[338424998,1726630239688,-161.42631546,0.00019177,2]
[338424999,1726630239699,-1441.30764285,0.00019177,2]
[338425000,1726630239710,-10032.67884088,0.00019178,5]
[338425001,1726630239724,-2930.24233511,0.00019178,5]
[338425002,1726630239735,-563.08978909,0.00019178,2]
[338425003,1726630239745,-1000.0,0.00019178,2]
[338425004,1726630239756,-252.9593993,0.00019178,2]
[338425005,1726630239765,-500.0,0.00019178,2]
[338425006,1726630239776,-500.0,0.00019178,2]
[338425007,1726630239788,-500.0,0.00019178,2]
[338425008,1726630239800,-500.0,0.00019178,2]
[338425009,1726630239810,-154.29237224,0.00019178,2]
[338425010,1726630239821,-2301.26,0.00019178,2]
[338425011,1726630239833,-500.0,0.00019178,2]
[338425012,1726630239842,-500.0,0.00019178,2]
[338425013,1726630239853,-533.87,0.00019178,2]
[338425014,1726630239862,-634.64,0.00019178,2]
[338425015,1726630239873,-500.0,0.00019178,2]
[338425016,1726630239882,-500.0,0.00019178,2]
[338425017,1726630239893,-500.0,0.00019178,2]
[338425018,1726630239904,-2106.44,0.00019178,2]
[338425019,1726630239915,-500.0,0.00019178,2]
[338425020,1726630239925,-500.0,0.00019178,2]
[338425021,1726630239936,-500.0,0.00019178,2]
[338425022,1726630239946,-500.82107924,0.00019178,2]
[338425023,1726630239957,-480.5328709,0.00019178,2]
[338425024,1726630239968,-500.0,0.00019178,2]
[338425025,1726630239977,-500.0,0.00019178,2]
[338425026,1726630239988,-564.25,0.00019178,2]
[338425027,1726630239998,-500.0,0.00019178,2]
[338425028,1726630240009,-500.0,0.00019178,2]
[338425029,1726630240019,-500.0,0.00019178,2]
[338425030,1726630240029,-500.0,0.00019178,2]
[338425031,1726630240040,-500.0,0.00019178,2]
[338425032,1726630240049,-500.0,0.00019178,2]
[338425033,1726630240061,-500.0,0.00019178,2]
[338425034,1726630240070,-500.0,0.00019178,2]
[338425035,1726630240081,-500.0,0.00019178,2]
[338425036,1726630240092,-1627.6,0.00019178,2]
[338425037,1726630240102,-500.0,0.00019178,2]
[338425038,1726630240112,-500.0,0.00019178,2]
[338425039,1726630240122,-500.0,0.00019178,2]
[338425040,1726630240134,-500.0,0.00019178,2]
[338425041,1726630240146,-500.0,0.00019178,2]
[338425042,1726630240158,-500.0,0.00019178,2]
[338425043,1726630240168,-2742.95,0.00019178,2]
[338425044,1726630240179,-944.56,0.00019178,2]
[338425045,1726630240189,-1079.14,0.00019178,2]
[338425046,1726630240201,-1079.14,0.00019178,2]
[338425047,1726630240211,-1079.14,0.00019178,2]
[338425048,1726630240221,-508.55647824,0.00019178,2]
[338425049,1726630240231,-1079.14,0.00019178,2]
[338425050,1726630240245,-1079.14,0.00019178,2]
[338425051,1726630240255,-1079.14,0.00019178,2]
[338425052,1726630240268,-1079.14,0.00019178,2]
[338425053,1726630240278,-1079.14,0.00019178,2]
[338425054,1726630240290,-1370.87,0.00019178,2]
[338425055,1726630240299,-1079.14,0.00019178,2]
[338425056,1726630240309,-1079.14,0.00019178,2]
[338425057,1726630240320,-500.0,0.00019178,2]
[338425058,1726630240330,-1079.14,0.00019178,2]
[338425059,1726630240342,-1079.14,0.00019178,2]
[338425060,1726630240354,-1079.14,0.00019178,2]
[338425061,1726630240364,-1079.14,0.00019178,2]
[338425062,1726630240374,-1079.14,0.00019178,2]
[338425064,1726630240383,-1079.14,0.00019178,2]
[338425065,1726630240394,-1079.14,0.00019178,2]
[338425066,1726630240406,-1079.14,0.00019178,2]
[338425067,1726630240417,-500.0,0.00019178,2]
[338425068,1726630240427,-1079.14,0.00019178,2]
[338425069,1726630240437,-1079.14,0.00019178,2]
[338425070,1726630240449,-1079.14,0.00019178,2]
[338425071,1726630240460,-1079.14,0.00019178,2]
[338425072,1726630240470,-1079.14,0.00019178,2]
[338425073,1726630240481,-305.75426167,0.00019178,2]
[338425074,1726630240492,-1079.21861078,0.00019178,2]
[338425075,1726630240502,-500.0,0.00019178,2]
[338425076,1726630240514,-500.0,0.00019178,2]
[338425077,1726630240524,-661.91,0.00019178,2]
[338425078,1726630240536,-500.0,0.00019178,2]
[338425079,1726630240546,-500.0,0.00019178,2]
[338425080,1726630240558,-500.0,0.00019178,2]
[338425081,1726630240569,-500.0,0.00019178,2]
[338425082,1726630240579,-508.05,0.00019178,2]
[338425084,1726630240591,-500.0,0.00019178,2]
[338425087,1726630240603,-500.0,0.00019178,2]
[338425089,1726630240613,-1688.46,0.00019178,2]
[338425090,1726630240624,-500.0,0.00019178,2]
[338425091,1726630240634,-500.0,0.00019178,2]
[338425092,1726630240646,-1043.4,0.00019178,2]
[338425093,1726630240657,-261.40377493,0.00019178,2]
[338425094,1726630240669,-500.0,0.00019178,2]
[338425095,1726630240679,-500.0,0.00019178,2]
[338425096,1726630240690,-1018.52,0.00019178,2]
[338425097,1726630240701,-500.0,0.00019178,2]
[338425098,1726630240712,-505.49503684,0.00019178,2]
[338425099,1726630240724,-500.0,0.00019178,2]
[338425101,1726630240736,-500.0,0.00019178,2]
[338425103,1726630240748,-568.68349003,0.00019178,2]
[338425105,1726630240758,-566.07,0.00019178,2]
[338425107,1726630240769,-500.0,0.00019178,2]
[338425108,1726630240781,-516.74,0.00019178,2]
[338425109,1726630240792,-500.0,0.00019178,2]
[338425110,1726630240803,-500.0,0.00019178,2]
[338425111,1726630240814,-1730.07,0.00019178,2]
[338425112,1726630240826,-500.0,0.00019178,2]
[338425113,1726630240836,-501.77,0.00019178,2]
[338425114,1726630240846,-500.0,0.00019178,2]
[338425115,1726630240857,-500.0,0.00019178,2]
[338425116,1726630240866,-500.0,0.00019178,2]
[338425117,1726630240876,-500.0,0.00019178,2]
[338425118,1726630240885,-500.0,0.00019178,2]
[338425119,1726630240894,-500.0,0.00019178,2]
[338425120,1726630240904,-500.0,0.00019178,2]
[338425121,1726630240913,-860.81,0.00019178,2]
[338425122,1726630240922,-178.69640053,0.00019178,2]
[338425123,1726630240933,-500.0,0.00019178,2]
[338425124,1726630240945,-500.0,0.00019178,2]
[338425125,1726630240955,-500.0,0.00019178,2]
[338425126,1726630240966,-500.0,0.00019178,2]
[338425127,1726630240976,-500.0,0.00019178,2]
[338425128,1726630240986,-500.0,0.00019178,2]
[338425129,1726630240997,-500.0,0.00019178,2]
[338425130,1726630241008,-544.77,0.00019178,2]
[338425131,1726630241018,-151.0,0.00019178,2]
[338425132,1726630241028,-559.49,0.00019178,2]
[338425133,1726630241038,-572.54,0.00019178,2]
[338425134,1726630241050,-500.0,0.00019178,2]
[338425135,1726630241061,-500.0,0.00019178,2]
[338425136,1726630241070,-223.49469264,0.00019178,2]
[338425137,1726630241081,-500.0,0.00019178,2]
[338425138,1726630241091,-500.0,0.00019178,2]
[338425139,1726630241101,-2287.2,0.00019178,2]
[338425140,1726630241112,-500.0,0.00019178,2]
[338425141,1726630241123,-500.0,0.00019178,2]
[338425142,1726630241133,-500.0,0.00019178,2]
[338425143,1726630241144,-500.0,0.00019178,2]
[338425144,1726630241156,-500.0,0.00019178,2]
[338425145,1726630241169,-742.33,0.00019178,2]
[338425146,1726630241180,-500.0,0.00019178,2]
[338425147,1726630241190,-536.08,0.00019178,2]
[338425148,1726630241203,-500.0,0.00019178,2]
[338425149,1726630241216,-500.0,0.00019178,2]
[338425150,1726630241225,-500.0,0.00019178,2]
[338425151,1726630241235,-500.0,0.00019178,2]
[338425152,1726630241244,-770.75,0.00019178,2]
[338425153,1726630241255,-718.77,0.00019178,2]
[338425154,1726630241266,-500.0,0.00019178,2]
[338425155,1726630241276,-500.0,0.00019178,2]
[338425156,1726630241285,-500.0,0.00019178,2]
[338425157,1726630241296,-500.0,0.00019178,2]
[338425158,1726630241307,-880.12,0.00019178,2]
[338425159,1726630241318,-500.0,0.00019178,2]
[338425160,1726630241330,-571.98,0.00019178,2]
[338425161,1726630241341,-1355.15,0.00019178,2]
[338425162,1726630241356,-500.0,0.00019178,2]
[338425163,1726630241367,-825.65,0.00019178,2]
[338425164,1726630241379,-500.0,0.00019178,2]
[338425165,1726630241390,-500.0,0.00019178,2]
[338425166,1726630241400,-500.0,0.00019178,2]
[338425168,1726630241411,-500.0,0.00019178,2]
[338425169,1726630241422,-500.0,0.00019178,2]
[338425170,1726630241432,-1437.04,0.00019178,2]
[338425171,1726630241441,-533.36,0.00019178,2]
[338425172,1726630241450,-571.99,0.00019178,2]
[338425173,1726630241460,-500.0,0.00019178,2]
[338425174,1726630241470,-500.0,0.00019178,2]
[338425175,1726630241480,-500.0,0.00019178,2]
[338425176,1726630241489,-601.62,0.00019178,2]
[338425177,1726630241498,-500.0,0.00019178,2]
[338425178,1726630241509,-747.16,0.00019178,2]
[338425179,1726630241518,-213.87774882,0.00019178,2]
[338425180,1726630241528,-500.0,0.00019178,2]
[338425181,1726630241537,-1205.17,0.00019178,2]
[338425182,1726630241547,-1213.5,0.00019178,2]
[338425183,1726630241556,-174.24022888,0.00019178,2]
[338425184,1726630241566,-500.0,0.00019178,2]
[338425185,1726630241575,-500.0,0.00019178,2]
[338425186,1726630241584,-674.86,0.00019178,2]
[338425187,1726630241594,-500.0,0.00019178,2]
[338425188,1726630241603,-676.62,0.00019178,2]
[338425189,1726630241612,-500.0,0.00019178,2]
[338425190,1726630241622,-785.29,0.00019178,2]
[338425191,1726630241631,-2333.73,0.00019178,2]
[338425192,1726630241640,-500.0,0.00019178,2]
[338425193,1726630241649,-500.0,0.00019178,2]
[338425194,1726630241658,-644.04,0.00019178,2]
[338425195,1726630241667,-500.0,0.00019178,2]
[338425196,1726630241676,-500.0,0.00019178,2]
[338425197,1726630241685,-500.0,0.00019178,2]
[338425198,1726630241695,-500.0,0.00019178,2]
[338425199,1726630241704,-500.0,0.00019178,2]
[338425200,1726630241713,-500.0,0.00019178,2]
[338425201,1726630241722,-500.0,0.00019178,2]
[338425202,1726630241732,-500.0,0.00019178,2]
[338425203,1726630241742,-500.0,0.00019178,2]
[338425204,1726630241752,-596.58861169,0.00019178,2]
[338425205,1726630241761,-500.0,0.00019178,2]
[338425206,1726630241771,-500.0,0.00019178,2]
[338425207,1726630241780,-500.0,0.00019178,2]
[338425208,1726630241789,-500.0,0.00019178,2]
[338425209,1726630241799,-500.0,0.00019178,2]
[338425210,1726630241808,-500.0,0.00019178,2]
[338425211,1726630241817,-533.73269536,0.00019178,2]
[338425212,1726630241827,-500.0,0.00019178,2]
[338425213,1726630241839,-855.32,0.00019178,2]
[338425214,1726630241848,-518.52633962,0.00019178,2]
[338425215,1726630241859,-650.27,0.00019178,2]
[338425216,1726630241868,-500.0,0.00019178,2]
[338425217,1726630241879,-500.0,0.00019178,2]
[338425218,1726630241889,-1058.47,0.00019178,2]
[338425219,1726630241901,-804.71,0.00019178,2]
[338425220,1726630241913,-544.8,0.00019178,2]
[338425221,1726630241923,-500.0,0.00019178,2]
[338425222,1726630241935,-500.0,0.00019178,2]
[338425223,1726630241947,-623.3,0.00019178,2]
[338425224,1726630241959,-500.0,0.00019178,2]
[338425225,1726630241968,-500.0,0.00019178,2]
[338425226,1726630241979,-500.0,0.00019178,2]
[338425227,1726630241989,-501.90560113,0.00019178,2]
[338425228,1726630242000,-1096.84,0.00019178,2]
[338425229,1726630242011,-500.0,0.00019178,2]
[338425230,1726630242021,-500.0,0.00019178,2]